fUSD/lending_fUSD_20240327
["ID","MTS","AMOUNT","RATE_DAILY","PERIOD"]
[320724784,1711536640543,-522.71496079,0.0004168,2]
[320724787,1711536640553,-178.26,0.000419,7]
[320724789,1711536640565,-489.28,0.0004216,2]
[320724791,1711536640575,-4250.77091699,0.00042173,4]
[320724792,1711536640585,-155.94263344,0.00042362,7]
[320724794,1711536640595,-183.71,0.000425,7]
[320724796,1711536640605,-1022.0,0.00042539,3]
[320724798,1711536640614,-387.55,0.000427,7]
[320724800,1711536640623,-3082.26698429,0.00042811,11]
[320724803,1711536640633,-650.0,0.00043,3]
[320724805,1711536640643,-152.38573111,0.00043285,19]
[320724806,1711536640653,-304.0,0.00043459,120]
[320724809,1711536640662,-920.0,0.00043459,2]
[320724811,1711536640672,-771.08,0.00043507,15]
[320724813,1711536640682,-150.0,0.00043675,60]
[320724815,1711536640691,-502.29976169,0.00043675,60]
[320724817,1711536640701,-3759.5,0.00043804,2]
[320724818,1711536640710,-522.71496079,0.00043936,2]
[320724820,1711536640722,-489.28,0.00044424,2]
[320724823,1711536640733,-1054.17537189,0.00044997,4]
[320724825,1711536640743,-316.46427902,0.00044998,4]
[320724827,1711536640754,-270.0,0.00044999,4]
[320724829,1711536640765,-2569.0,0.00045,30]
[320724831,1711536640774,-339.22517766,0.00045,10]
[320724832,1711536640784,-22038.94073476,0.00045,4]
[320724834,1711536640794,-700.0,0.00045,3]
[320724836,1711536640803,-1166.44971,0.00045,60]
[320724838,1711536640813,-500.0,0.00045,14]
[320724841,1711536640824,-155.01870001,0.00045,30]
[320724843,1711536640836,-3147.72141419,0.00045026,4]
[320724844,1711536640845,-3082.26698429,0.00045297,12]
[320724846,1711536640855,-183.71,0.000457,7]
[320724849,1711536640865,-387.55,0.00046,7]
[320724851,1711536640875,-522.71496079,0.00046193,2]
[320724852,1711536640884,-771.08,0.00046247,15]
[320724853,1711536640894,-1000.0,0.00046381,2]
[320724854,1711536640904,-1086.25267969,0.00046536,4]
[320724855,1711536640914,-1362.13070533,0.00046544,4]
[320724856,1711536640923,-489.28,0.00046688,2]
[320724857,1711536640932,-155.94263344,0.00046886,25]
[320724858,1711536640942,-750.0,0.00047,3]
[320724859,1711536640952,-5284.6488,0.00047396,2]
[320724860,1711536640961,-183.71,0.000474,7]
[320724861,1711536640971,-304.0,0.0004741,120]
[320724862,1711536640981,-742.73043851,0.0004741,2]
[320724863,1711536641002,-177.26956149,0.0004741,2]
[320724865,1711536641014,-229.87705536,0.00047495,4]
[320724866,1711536641026,-387.55,0.000475,7]
[320724869,1711536641036,-12954.78,0.00047542,2]
[320724870,1711536641045,-152.76,0.00047699,2]
[320724873,1711536641056,-414.82,0.00047699,2]
[320724875,1711536641066,-151.35,0.00047699,2]
[320724877,1711536641076,-517.72,0.00047699,2]
[320724879,1711536641086,-517.72,0.00047699,2]
[320724881,1711536641096,-318.31,0.00047699,2]
[320724883,1711536641105,-1285.98288985,0.00047721,2]
[320724885,1711536641115,-198.78445372,0.00047725,2]
[320724886,1711536641125,-3082.26698429,0.00047783,13]
[320724888,1711536641135,-100000.0,0.00047919,7]
[320724890,1711536641145,-156.81209444,0.0004798,30]
[320724892,1711536641155,-503.6111413,0.00048,100]
[320724893,1711536641166,-560.75087012,0.00048,4]
[320724894,1711536641177,-164.88553698,0.00048037,30]
[320724895,1711536641187,-150.0,0.0004828,120]
[320724896,1711536641197,-636.50981946,0.00048337,30]
[320724897,1711536641208,-190.24451948,0.00048352,30]
[320724898,1711536641218,-166.37,0.0004836,2]
[320724899,1711536641228,-190.24451948,0.00048444,30]
[320724900,1711536641237,-156.89639175,0.0004862,30]
[320724901,1711536641247,-158.12704685,0.00048695,30]
[320724902,1711536641257,-16721.08964175,0.000487,2]
[320724903,1711536641268,-1111.0,0.000487,4]
[320724904,1711536641278,-152.38573111,0.00048732,39]
[320724905,1711536641288,-163.57700478,0.00048776,30]
[320724906,1711536641298,-709.36350887,0.00048798,15]
[320724907,1711536641308,-387.55,0.000488,7]
[320724908,1711536641318,-183.71,0.000488,7]
[320724909,1711536641328,-152.97231096,0.00048818,30]
[320724910,1711536641337,-636.50981946,0.00048818,30]
[320724911,1711536641346,-636.50981946,0.00048875,30]
[320724912,1711536641356,-489.28,0.00048952,2]
[320724913,1711536641366,-771.08,0.00048986,15]
[320724914,1711536641376,-190.24451948,0.00048996,30]
[320724915,1711536641386,-800.0,0.00049,3]
[320724916,1711536641395,-178.26,0.00049,7]
[320724917,1711536641406,-156.89639175,0.00049031,30]
[320724918,1711536641415,-190.24451948,0.00049105,30]
[320724919,1711536641426,-2261.79,0.00049173,120]
[320724920,1711536641435,-2000.0,0.00049315,30]
[320724921,1711536641446,-3073.0,0.00049315,120]
[320724922,1711536641456,-3119.0,0.00049315,120]
[320724923,1711536641466,-3119.0,0.00049315,120]
[320724924,1711536641476,-3120.0,0.00049315,120]
[320724925,1711536641486,-156.89639175,0.00049461,30]
[320724926,1711536641498,-190.24451948,0.00049469,30]
[320724927,1711536641510,-2000.0,0.00049589,30]
[320724928,1711536641521,-158.88,0.000496,7]
[320724929,1711536641532,-1008.10630562,0.00049753,30]
[320724930,1711536641543,-164.88553698,0.00049855,30]
[320724931,1711536641553,-646.01,0.00049863,30]
[320724932,1711536641564,-250.99538938,0.00049991,4]
[320724933,1711536641574,-567.75368568,0.0005,30]
[320724934,1711536641585,-5000.0,0.0005,30]
[320724935,1711536641596,-1291.33627352,0.0005,30]
[320724936,1711536641605,-5860.0,0.0005,14]
[320724937,1711536641615,-973669.05924246,0.0005,120]
[320724938,1711536641628,-1860553.03623506,0.0005,120]
[320724939,1711536641640,-1143.40519,0.0005,120]
[320724940,1711536641666,-961.40654544,0.0005,120]
[320724941,1711536641699,-452.64,0.0005,120]
[320724942,1711536641722,-463.3815,0.0005,120]
[320724943,1711536641743,-854.34805812,0.0005,120]
[320724944,1711536641771,-1511.4144755,0.0005,120]
[320724945,1711536642458,-1199.68094201,0.00039649,2]
[320724946,1711536642468,-522.71496079,0.00048449,2]
[320724947,1711536642477,-1791.41242729,0.0005,120]
[320724948,1711536642497,-599.02514695,0.0005,120]
[320724949,1711536642535,-495.76795406,0.0005,120]
[320724950,1711536642548,-287.30200494,0.0005,120]
[320724952,1711536642559,-18423.57393721,0.0005,120]
[320724961,1711536643103,-186.99764804,0.00039649,31]
[320724962,1711536643114,-313.00235196,0.0005,120]
[320724963,1711536643185,-16736.60010526,0.0005,120]
[320724964,1711536643206,-35067.0,0.0005,120]
[320724965,1711536643219,-495.13548268,0.0005,120]
[320724966,1711536643259,-5011.4025673,0.0005,120]
[320724967,1711536643272,-9163.00931567,0.0005,120]
[320724968,1711536643284,-7616.70446248,0.0005,120]
[320724970,1711536643378,-1134.80094978,0.0005,120]
[320724972,1711536643390,-1907.05,0.0005,120]
[320724975,1711536643402,-562.6023957,0.0005,120]
[320724976,1711536643414,-763.9425,0.0005,120]
[320724977,1711536643425,-856.12086506,0.0005,120]
[320725038,1711536645837,-3984.14502,0.00019887,2]
[320725039,1711536645850,-3327.8682839,0.00019887,2]
[320725040,1711536645861,-3908.2000015,0.00019887,2]
[320725041,1711536645873,-2150.34,0.00019887,2]
[320725042,1711536646018,-2090.87688938,0.00019887,2]
[320725043,1711536646031,-177.4035977,0.00019887,2]
[320725044,1711536646041,-572.05785348,0.00047721,2]
[320725045,1711536646053,-627.62308852,0.00047721,2]
[320725046,1711536646062,-143.08091468,0.00047721,2]
[320725047,1711536646078,-362.59589998,0.00047721,2]
[320725048,1711536646092,-501.87468549,0.00047721,2]
[320725049,1711536646102,-3414.52531451,0.0005,120]
[320725050,1711536646115,-1282.02136218,0.0005,120]
[320725051,1711536646140,-743.3523116,0.0005,120]
[320725052,1711536646151,-1212.83912908,0.0005,120]
[320725053,1711536646163,-408.34836646,0.0005,120]
[320725054,1711536646202,-5268.58269384,0.0005,120]
[320725055,1711536646213,-265.56065732,0.0005,120]
[320725060,1711536670538,11754679.69421585,0.00018,2]
[320725061,1711536672412,646.45627616,0.000154,2]
[320725062,1711536677798,158.34642619,0.00039616,30]
[320725063,1711536681745,8931.88921861,9e-05,2]
[320725064,1711536683490,827.50813781,0.00039616,30]
[320725065,1711536687575,1544.14002948,0.00018,2]
[320725066,1711536688307,1084.63587271,0.00039616,30]
[320725067,1711536689785,240.81097804,0.00039616,30]
[320725068,1711536690503,903.58694345,0.00039616,30]
[320725069,1711536693503,14211.13085469,0.0001,2]
[320725070,1711536693654,605.44603942,0.00039616,120]
[320725071,1711536698402,3697.08093297,0.00011,2]
[320725072,1711536701947,150.0,0.00039616,30]
[320725073,1711536702669,250.0,0.00039616,30]
[320725074,1711536704239,772.50737013,0.00039616,30]
[320725076,1711536716722,643.59902733,0.00039616,120]
[320725077,1711536718529,4153.66831633,6.94e-05,2]
[320725078,1711536722181,413.61978613,0.00039616,30]
[320725079,1711536728503,207.62325671,0.00039616,120]
[320725080,1711536732481,4532.81202388,0.000199,3]
[320725082,1711536736983,313.41245276,0.00039616,120]
[320725083,1711536751838,589.88014238,0.00015,2]
[320725084,1711536757659,462.8442059,0.00039616,30]
[320725085,1711536781992,439.46,0.00015,2]
[320725086,1711536798999,205.0,9.8e-05,2]
[320725087,1711536802683,223.91592197,0.0001305,2]
[320725088,1711536805274,274.32281831,0.00039616,30]
[320725089,1711536810385,938.37870965,9.8e-05,2]
[320725090,1711536813253,369.89529342,0.00039616,120]
[320725091,1711536814039,19579.69148142,9.8e-05,2]
[320725092,1711536815837,429.450413,0.00039616,120]
[320725093,1711536821113,419.65196385,0.00039616,30]
[320725094,1711536827848,206.30314948,0.00039616,120]
[320725095,1711536828046,5081.50005618,9.8e-05,2]
[320725096,1711536828387,1014.49154166,9.8e-05,2]
[320725097,1711536830947,172.66334611,0.00039616,30]
[320725098,1711536834565,541.45669874,0.00039616,120]
[320725099,1711536835109,798.10543524,0.00039616,120]
[320725100,1711536840126,15233.98198014,0.00012,2]
[320725101,1711536842158,1097295.18626703,0.00018,2]
[320725102,1711536844759,252.08869411,0.00039616,30]
[320725103,1711536850242,712.03928164,0.00039616,30]
[320725104,1711536860063,1000.0,0.000135,2]
[320725105,1711536860266,285.66449709,0.000125,2]
[320725106,1711536872583,784.39402731,0.00039616,120]
[320725107,1711536873105,4029.51639132,0.00015,2]
[320725108,1711536874394,476.37773482,0.00039616,30]
[320725109,1711536875859,163.64307317,0.00039616,120]
[320725110,1711536876070,376.93505171,0.00039616,30]
[320725111,1711536876110,436.47358446,0.00039616,30]
[320725112,1711536877573,207.84416757,0.0001,2]
[320725113,1711536877860,1325.76517779,0.00039616,120]
[320725114,1711536879084,302.00457,0.00039616,30]
[320725115,1711536879926,756.0,0.00039616,120]
[320725116,1711536880822,372.96824591,0.00039616,120]
[320725117,1711536881482,422.68,0.00039616,120]
[320725118,1711536911124,-193.81106388,0.00019777,2]
[320725119,1711536911156,-294.11055924,0.00019777,2]
[320725120,1711536911209,-806.5669211,0.00019778,2]
[320725121,1711536911246,-1237.33265613,0.00019779,2]
[320725122,1711536911280,-156.58282532,0.00019782,2]
[320725123,1711536911315,-206.3682,0.00019787,2]
[320725124,1711536911347,-3060.22777433,0.00019884,2]
[320725125,1711537014826,150.0,0.00039675,30]
[320725126,1711537015492,250.0,0.00039675,30]
[320725127,1711537071311,-304.0,0.00026325,120]
[320725128,1711537207342,-534.84684711,0.0001977,2]
[320725129,1711537207366,-235.35674052,0.0001977,2]
[320725130,1711537207387,-155.0,0.0001977,2]
[320725131,1711537207409,-150.0,0.0001977,2]
[320725132,1711537207431,-205.0,0.0001977,2]
[320725133,1711537207452,-485.65085822,0.00019771,2]
[320725134,1711537207473,-1054.59333877,0.00019771,2]
[320725135,1711537207494,-3846.71319902,0.00019771,2]
[320725136,1711537207516,-763.08835726,0.00019772,2]
[320725137,1711537207538,-5358.8676991,0.00019772,2]
[320725138,1711537207561,-4959.84843267,0.00019773,2]
[320725139,1711537207584,-262.26705623,0.00019774,2]
[320725140,1711537207619,-2000.0,0.00019774,2]
[320725141,1711537207646,-618.37786763,0.00019775,2]
[320725142,1711537207670,-4308.27468613,0.00019777,2]
[320725143,1711537207695,-151.92531869,0.00019784,2]
[320725144,1711537207721,-1418.16364149,0.00019884,2]
[320725145,1711537207746,-4865.54805737,0.00019884,2]
[320725146,1711537207771,-359.42818938,0.00019884,2]
[320725147,1711537207794,-614.14,0.00019884,2]
[320725148,1711537207816,-3820.42116839,0.00019885,2]
[320725149,1711537207840,-495.19,0.00019885,2]
[320725150,1711537207864,-9999.99,0.00019885,2]
[320725151,1711537207889,-294.71405364,0.00019888,2]
[320725152,1711537207956,-2342.08393912,0.0002,2]
[320725153,1711537208188,-741.31,0.0002,2]
[320725154,1711537208342,-854.93307856,0.0002,2]
[320725155,1711537208368,-3045.64301195,0.0002,2]
[320725156,1711537208391,-591.0994759,0.00020764,2]
[320725157,1711537208415,-1757.21056864,0.00020765,2]
[320725158,1711537208440,-1249.19045626,0.00020766,2]
[320725159,1711537208469,-151.92531863,0.00020768,2]
[320725160,1711537208492,-210.0,0.00021747,2]
[320725161,1711537208515,-151.92531863,0.00021752,2]
[320725162,1711537208539,-499.99,0.00021868,2]
[320725163,1711537208562,-2772.13,0.00021869,2]
[320725164,1711537208585,-696.42,0.00021869,2]
[320725165,1711537208608,-644.17906747,0.00022,2]
[320725166,1711537208632,-151.92531863,0.00022736,2]
[320725167,1711537208658,-151.92531863,0.0002372,2]
[320725168,1711537208685,-586.0,0.000238,2]
[320725169,1711537208708,-260.0,0.000238,2]
[320725170,1711537208731,-293.0,0.00023922,2]
[320725171,1711537208755,-250.0,0.00024565,2]
[320725172,1711537208782,-467.86,0.00024565,2]
[320725173,1711537208807,-294.11055924,0.00024699,2]
[320725174,1711537208832,-200.0,0.000247,2]
[320725175,1711537208857,-151.92531863,0.00024704,2]
[320725176,1711537208880,-11900.0,0.00024892,2]
[320725177,1711537208905,-1346.83,0.00024967,2]
[320725178,1711537208929,-4698.81,0.00024975,2]
[320725179,1711537208953,-1363.35991343,0.00025,2]
[320725180,1711537208978,-1827.48,0.00025002,2]
[320725181,1711537209004,-1000.0,0.00025238,2]
[320725182,1711537209030,-151.92531863,0.00025687,2]
[320725183,1711537209056,-295.41221015,0.00026325,2]
[320725184,1711537209081,-441.01478668,0.00026325,2]
[320725185,1711537209105,-2452.83342376,0.00026325,2]
[320725186,1711537209128,-2201.31933089,0.00026325,2]
[320725187,1711537209154,-155.0,0.00026325,2]
[320725188,1711537209179,-679.98,0.00026325,2]
[320725189,1711537209205,-250.0,0.00026598,2]
[320725190,1711537209229,-151.92531863,0.00026671,2]
[320725191,1711537209253,-500.0,0.00026944,2]
[320725192,1711537209281,-579.24720401,0.00026997,2]
[320725193,1711537209308,-23900.0,0.00027021,2]
[320725194,1711537209332,-157.45,0.00027021,10]
[320725195,1711537209357,-2226.21,0.00027021,2]
[320725196,1711537209382,-163.85,0.00027363,2]
[320725197,1711537209410,-151.92531863,0.00027655,2]
[320725198,1711537209435,-1827.48,0.00027742,2]
[320725199,1711537209461,-157.99,0.00027756,2]
[320725200,1711537209486,-3094.03,0.00027775,2]
[320725201,1711537209511,-500.0,0.00027969,2]
[320725202,1711537209534,-150.0,0.00028241,2]
[320725203,1711537209559,-1000.0,0.00028392,2]
[320725204,1711537209582,-2935.11741451,0.00028496,2]
[320725205,1711537209605,-178.01153981,0.00028498,7]
[320725206,1711537209629,-3147.72141419,0.00028498,2]
[320725207,1711537209653,-151.92531863,0.00028639,2]
[320725208,1711537209680,-157.99,0.00029202,2]
[320725209,1711537209710,-170.46952289,0.00029397,2]
[320725210,1711537209737,-304.0,0.00029616,120]
[320725211,1711537209763,-151.92531863,0.00029623,2]
[320725212,1711537209786,-250.99538938,0.00029698,2]
[320725213,1711537209818,-151.04898951,0.000298,2]
[320725214,1711537209844,-155.0,0.00029898,2]
[320725215,1711537209868,-7698.5810018,0.000299,2]
[320725216,1711537210073,-378.37013575,0.000299,2]
[320725217,1711537210098,-495.52561994,0.000299,2]
[320725218,1711537210122,-35247.4927627,0.00029988,2]
[320725219,1711537210144,-805.54255055,0.00029997,2]
[320725220,1711537210166,-444.63383928,0.00029997,2]
[320725221,1711537210188,-1290.08785204,0.00029997,2]
[320725222,1711537210211,-193.15886245,0.00029997,2]
[320725223,1711537210233,-200.32787722,0.00029997,2]
[320725224,1711537210256,-1572.4667378,0.00029997,2]
[320725225,1711537210279,-1517.66808908,0.00029997,2]
[320725226,1711537210304,-1234.79966986,0.00029997,2]
[320725227,1711537210326,-155.19579303,0.00029997,2]
[320725228,1711537210348,-270.0,0.00029998,2]
[320725229,1711537210368,-155.59850934,0.00029998,2]
[320725230,1711537210390,-199.7947513,0.00029998,2]
[320725231,1711537210411,-704.60565098,0.00029998,2]
[320725232,1711537210433,-155.0,0.00029998,2]
[320725233,1711537210455,-155.0,0.00029998,2]
[320725234,1711537210478,-205.23806172,0.00029998,2]
[320725235,1711537210501,-599.01425648,0.00029999,2]
[320725236,1711537210526,-1039.8118,0.00029999,2]
[320725237,1711537210548,-308731.61618441,0.00029999,2]
[320725238,1711537318804,150.0,0.00039244,30]
[320725239,1711537320293,250.0,0.00039244,30]
[320725240,1711537517226,221.40237344,0.00039236,30]
[320725241,1711537599926,150.0,0.00039236,30]
[320725242,1711537600350,250.0,0.00039236,30]
[320725243,1711537639145,-644.17906747,0.00022997,2]
[320725244,1711537639165,-155.0,0.00022998,2]
[320725245,1711537639186,-485.65085822,0.00022999,2]
[320725246,1711537639206,-235.35674052,0.00022999,2]
[320725247,1711537639226,-215.13254369,0.00022999,2]
[320725264,1711537832514,-3963.24143454,0.000225,3]
[320725265,1711537832538,-400.1265695,0.000225,3]
[320725266,1711537832549,-268.018002,0.000225,3]
[320725267,1711537832561,-2649.62890931,0.000225,3]
[320725268,1711537833489,-7794.98508465,0.000225,3]
[320725269,1711537833498,-262.26705623,0.00022995,2]
[320725270,1711537833507,-618.37786763,0.00022996,2]
[320725271,1711537833516,-2201.31933089,0.00022999,2]
[320725272,1711537833525,-295.41221015,0.00022999,2]
[320725273,1711537833535,-150.0,0.00023898,2]
[320725274,1711537833545,-300.0,0.00023898,2]
[320725275,1711537833554,-4959.84843267,0.00023899,2]
[320725276,1711537833562,-996.0,0.000239,2]
[320725277,1711537833572,-206.180097,0.00025753,2]
[320725278,1711537833581,-1898.28964093,0.00026325,2]
[320725279,1711537833590,-155.47290894,0.00026325,2]
[320725280,1711537833599,-567.74,0.00026546,2]
[320725281,1711537833609,-206.180097,0.00026575,2]
[320725282,1711537833618,-155.0,0.00026997,2]
[320725283,1711537833627,-299.99,0.00026997,12]
[320725284,1711537833636,-250.0,0.00027,3]
[320725285,1711537833647,-499.99,0.00027,2]
[320725286,1711537833656,-206.180097,0.00027397,2]
[320725287,1711537833666,-200.0,0.00028191,2]
[320725288,1711537833675,-1441.61,0.00028194,2]
[320725289,1711537833684,-250.0,0.00028209,2]
[320725290,1711537833693,-206.180097,0.00028219,14]
[320725291,1711537833702,-200.0,0.00028226,2]
[320725292,1711537833711,-786.71,0.00028384,2]
[320725293,1711537833720,-400.0,0.00028463,2]
[320725294,1711537833730,-217.6,0.00028531,120]
[320725295,1711537833739,-608.82,0.00028537,2]
[320725296,1711537833748,-500.0,0.00028595,2]
[320725297,1711537833756,-250.0,0.00028626,2]
[320725298,1711537833765,-3218.11,0.00028698,2]
[320725299,1711537833774,-23900.0,0.00028698,2]
[320725300,1711537833784,-500.0,0.00028713,2]
[320725301,1711537833794,-400.06,0.00028718,2]
[320725302,1711537833802,-567.74,0.0002881,2]
[320725303,1711537833812,-150.0,0.00028845,2]
[320725304,1711537833821,-300.0,0.00029,3]
[320725305,1711537833831,-206.180097,0.00029041,14]
[320725306,1711537833840,-190.04,0.00029147,2]
[320725307,1711537833848,-166.59,0.00029343,2]
[320725308,1711537833861,-1368.30627953,0.00029397,2]
[320725309,1711537833870,-444.80508524,0.00029397,2]
[320725310,1711537833879,-223.86,0.00029596,2]
[320725311,1711537833889,-172.49,0.00029772,2]
[320725312,1711537833899,-6928.72290162,0.00029899,2]
[320725313,1711537833908,-2872.44675777,0.00029899,2]
[320725314,1711537833918,-2872.44675775,0.00029899,2]
[320725315,1711537833929,-2872.44675775,0.000299,2]
[320725316,1711537833938,-302.6961086,0.000299,2]
[320725317,1711537833948,-2373.57873939,0.000299,2]
[320725318,1711537833957,-462.49057862,0.000299,2]
[320725319,1711537833967,-4963.98872767,0.00029976,2]
[320725320,1711537833976,-11843.50553414,0.00029977,2]
[320725321,1711537833989,-15257.90029578,0.00029977,2]
[320725322,1711537833998,-554.85409526,0.00029986,2]
[320725323,1711537834007,-3043.00850319,0.00029987,7]
[320725324,1711537834017,-500.0,0.00029987,2]
[320725325,1711537834027,-224.99,0.00029987,12]
[320725326,1711537834037,-495.92071811,0.00029988,2]
[320725327,1711537834046,-3843.87810236,0.00029988,2]
[320725328,1711537834056,-158.37,0.00029989,2]
[320725329,1711537834065,-158.37,0.00029989,2]
[320725330,1711537834074,-158.37,0.0002999,2]
[320725331,1711537834084,-158.37,0.0002999,2]
[320725332,1711537834093,-158.37,0.0002999,2]
[320725333,1711537834103,-158.37,0.0002999,2]
[320725334,1711537834114,-158.37,0.0002999,2]
[320725335,1711537834123,-158.37,0.0002999,2]
[320725336,1711537834133,-158.37,0.0002999,2]
[320725337,1711537834144,-158.37,0.0002999,2]
[320725338,1711537834153,-155.0,0.00029997,2]
[320725339,1711537834163,-925.39771655,0.00029997,2]
[320725340,1711537834172,-156.47105644,0.00029997,2]
[320725341,1711537834182,-277.82626495,0.00029997,2]
[320725342,1711537834191,-590.70569068,0.00029997,2]
[320725343,1711537834201,-161.85616178,0.00029997,2]
[320725344,1711537834210,-226.93537449,0.00029997,2]
[320725345,1711537834220,-155.93625809,0.00029997,2]
[320725346,1711537834229,-455.6622179,0.00029997,2]
[320725347,1711537834239,-530.08303492,0.00029997,2]
[320725348,1711537834249,-209.01685184,0.00029997,2]
[320725349,1711537834258,-163.59133875,0.00029997,2]
[320725350,1711537834268,-1248.13853534,0.00029998,2]
[320725351,1711537834278,-1755.93250024,0.00029998,2]
[320725352,1711537834287,-155.0,0.00029998,2]
[320725353,1711537834296,-854.34515916,0.00029998,3]
[320725354,1711537834305,-220246.80734362,0.00029999,2]
[320725355,1711537834317,-30661.55733738,0.00029999,2]
[320725356,1711537834337,-3829.12934074,0.00029999,2]
[320725357,1711537834349,-713.45,0.00029999,2]
[320725358,1711537834361,-5835.44804071,0.00029999,2]
[320725359,1711537834373,-261.15578167,0.00029999,2]
[320725360,1711537834393,-345.00864011,0.00029999,2]
[320725362,1711537837844,-206.180097,0.00029863,14]
[320725363,1711537837854,-238.394894,0.000299,2]
[320725364,1711537837868,-1799.38883696,0.000299,2]
[320725365,1711537837901,-834.66302679,0.000299,2]
[320725366,1711537837912,-399.28439374,0.00029999,2]
[320725367,1711537838154,-650.42734,0.00029999,2]
[320725368,1711537838166,-341.99163343,0.00029999,2]
[320725369,1711537838190,-0.00495579,0.00029999,2]
[320725370,1711537838201,-1876.67252607,0.00029999,2]
[320725371,1711537838212,-364.38007767,0.00029999,2]
[320725372,1711537838224,-330.33,0.00029999,2]
[320725373,1711537838235,-107182.44810869,0.00029999,2]
[320725374,1711537838245,-51740.208,0.00029999,2]
[320725375,1711537838254,-158589.78183864,0.0003,2]
[320725377,1711537838264,-11772.30738816,0.0003,7]
[320725379,1711537838273,-2237330.98500271,0.0003,4]
[320725380,1711537838282,-387.56,0.0003,2]
[320725381,1711537838293,-1285.98288987,0.0003008,2]
[320725382,1711537838302,-671.70100011,0.0003018,2]
[320725383,1711537838311,-151.92531863,0.00030607,2]
[320725384,1711537838320,-206.180097,0.00030685,14]
[320725385,1711537838330,-223.86,0.00030965,2]
[320725386,1711537838340,-350.0,0.00031,3]
[320725387,1711537838350,-166.37,0.00031015,2]
[320725388,1711537838359,-567.74,0.00031074,2]
[320725389,1711537838369,-1736.72669976,0.0003111,2]
[320725390,1711537838378,-180.0,0.00031223,2]
[320725391,1711537838387,-608.82,0.00031276,2]
[320725392,1711537838397,-206.180097,0.00031507,14]
[320725393,1711537838406,-1000.0,0.00031547,2]
[320725394,1711537838416,-400.0,0.00032021,2]
[320725395,1711537838425,-217.6,0.00032098,120]
[320725396,1711537838435,-462.49057848,0.00032295,2]
[320725397,1711537838445,-302.69610857,0.00032304,2]
[320725398,1711537838454,-206.180097,0.00032329,14]
[320725399,1711537838463,-749.32,0.00032548,15]
[320725400,1711537838473,-6928.72290161,0.00032715,2]
[320725401,1711537838482,-304.0,0.00032906,120]
[320725402,1711537838491,-400.0,0.00033,3]
[320725403,1711537838500,-206.180097,0.00033151,14]
[320725404,1711537838509,-387.56,0.000332,2]
[320725405,1711537838518,-567.74,0.00033338,2]
[320725406,1711537838527,-608.82,0.00034016,2]
[320725407,1711537838536,-462.49057848,0.0003469,2]
[320725408,1711537838546,-1000.0,0.00034702,2]
[320725409,1711537838555,-302.69610857,0.00034708,2]
[320725410,1711537838564,-155.94263348,0.000349,2]
[320725411,1711537838574,-152.38573111,0.000349,2]
[320725412,1711537838583,-150.5,0.0003497,15]
[320725413,1711537838593,-150.5,0.0003498,15]
[320725414,1711537838603,-150.5,0.0003499,15]
[320725415,1711537838613,-174.38,0.00035,2]
[320725416,1711537838623,-183.71,0.00035,2]
[320725417,1711537838634,-450.0,0.00035,3]
[320725418,1711537838643,-875.38743,0.00035,2]
[320725419,1711537838653,-875.38743,0.0003504,2]
[320725420,1711537838663,-875.38743,0.0003505,2]
[320725421,1711537838673,-875.38743,0.0003505,2]
[320725422,1711537838683,-875.38744,0.0003508,2]
[320725423,1711537838693,-875.38743,0.0003512,2]
[320725424,1711537838703,-749.32,0.00035288,15]
[320725425,1711537838713,-6928.72290161,0.00035531,2]
[320725426,1711537838723,-400.0,0.00035579,2]
[320725427,1711537838734,-567.74,0.00035602,2]
[320725428,1711537838744,-217.6,0.00035664,120]
[320725429,1711537838754,-304.0,0.00036197,120]